{"text_format":"1","workbook":"xlsx","n_sheets":4,"sheets":["Certificación Relación Anual ","Contador","Códigos","Campos a cubrir"],"not_rendered":{"charts":0,"images":3,"macros":1,"external_links":0,"defined_names":4,"comments":0,"pivot_tables":0},"unopened":[],"bounds":{"document_bytes":16777216,"sheet_cells":100000,"rows_first":2000,"rows_last":500,"rows_between":2000,"halvings":0,"cell_chars":16384,"cell_head_chars":4096},"cells_cut":0,"cells_raw":0,"read":"whole","date_system":"1900"}

{"sheet":"Certificación Relación Anual ","index":0,"n_rows":38,"n_cols":53,"rows_kept":38,"cut":false,"hidden":false,"merged":[[0,7,0,11],[1,7,1,11],[2,7,2,11]]}
[null,null,null,null,null,null,null,"C.E.E. Solicitante"]
[null,null,null,null,null,null,null,"DNI/NIF:",null,null,null,null,null,null,null,null,null,null,null,null,null,null,"NºExp"]
[null,null,null,null,null,null,null,"Nome da persoa representante:"]
[null,null,null,null,null,null,null,"Programa III: Programa de axudas ao mantemento do custo salarial nos C.E.E. (Procedemento TR341M)"]
[null,null,null,null,null,null,null,"Tipo de Axuda: Subvencion para a financiación do custo salarial de todas a persoas traballadoras con discapacidade contratadas en C.E.E. do territorio da Comunidade Autónoma de Galicia"]
["RELACIÓN PERSOAL CON DISCAPACIDADE",null,null,null,null," Convocatoria de Axudas","desde","hasta",null,"P.Trab. Subvencionadas",null,"60% SMI","50% SMI","Tot. Persoas","1º mes de",null,null,"    Total Periodo",null,"Total Certificación",null,null,"CERTIFICACIÓN DA RELACIÓN DO",null,null,null,null,null,null,null,null,null,null,null,null,null,null,null,null,"fin"]
[null,{"$f":"\"MES DE XULLO DE \"&YEAR(G7)","v":"MES DE XULLO DE 2023"},null,null,null,"Periodo subvencionable","2023-07-01",{"$f":"(DAY(G7)&\"/\"&(VALUE(MONTH(G7))+5)&\"/\"&YEAR(G7))-1","v":"2023-11-30"},null,"Homes",null,{"$f":"COUNTIFS(I10:I36,\"H\",E10:E36,1)","v":0},{"$f":"COUNTIFS(I10:I36,\"H\",E10:E36,0)","v":0}," Traballadoras","Solicitude",null,{"$f":"IF(MONTH(G7)=7,\"Xullo\",\"\")","v":"Xullo"},null,{"$f":"SUBTOTAL(9,S11:S36)","v":0},"   Relación Anual",null,null,"CADRO DE PERSOAL POLO CAL SE ",null,null,null,null,null,7,8,9,10,11]
["Novo\nIdX","nº Rexistro ","Salario",null,null,null,{"$f":"H7+1","v":"2023-12-01"},{"$f":"H7","v":"2023-11-30"},null,"Mulleres",null,{"$f":"COUNTIFS(I10:I36,\"M\",E10:E36,1)","v":0},{"$f":"COUNTIFS(I10:I36,\"M\",E10:E36,0)","v":0},{"$f":"SUM(L7:M8)","v":0},null,null,null,null,null,null,{"$f":"SUBTOTAL(9,U11:U36)","v":0},null,"SOLICITA A SUBV.DO CUSTO SALARIAL",null,null,null,null,null,{"$f":"$G$7","v":"2023-07-01"},{"$f":"AC9+1","v":"2023-08-01"},{"$f":"AD9+1","v":"2023-09-01"},"2023-10-01","2023-11-01",null,null,null,null,null,null,{"$f":"$G$7","v":"2023-07-01"},{"$f":"AN9+1","v":"2023-08-01"},{"$f":"AO9+1","v":"2023-09-01"},{"$f":"AP9+1","v":"2023-10-01"},{"$f":"AQ9+1","v":"2023-11-01"},null,null,null,null,null,5,{"$f":"COLUMN()","v":51}]
[{"$f":"MAXA(A11:A36)+1","v":1},"ou data pub.","Convenio","Conv","G",null,null,"Data",null,null,null,null,"Data","Data","  Cóntrato",null,"%","             Anualidade",null,null,"Total ",null,"Dias","Período subvención",null,null,null,null,{"$f":"(1&\"/\"&IF(MONTH(AC8)+1>12,12-MONTH(AC8)+1,(MONTH(AC8)+1)&\"/\"&IF(MONTH(AC8)+1>12,YEAR(AC8)+1,YEAR(AC8))))-1","v":"2023-07-31"},{"$f":"(1&\"/\"&IF(MONTH(AD8)+1>12,12-MONTH(AD8)+1,(MONTH(AD8)+1)&\"/\"&IF(MONTH(AD8)+1>12,YEAR(AD8)+1,YEAR(AD8))))-1","v":"2023-08-31"},{"$f":"(1&\"/\"&IF(MONTH(AE8)+1>12,12-MONTH(AE8)+1,(MONTH(AE8)+1)&\"/\"&IF(MONTH(AE8)+1>12,YEAR(AE8)+1,YEAR(AE8))))-1","v":"2023-09-30"},"2023-10-31","2023-11-30","DiaIni","MesIni","AñoIni","DiaFin","MesFin","AñoFin",{"$f":"(1&\"/\"&IF(MONTH(AN8)+1>12,12-MONTH(AN8)+1,(MONTH(AN8)+1)&\"/\"&IF(MONTH(AN8)+1>12,YEAR(AN8)+1,YEAR(AN8))))-1","v":"2023-07-31"},{"$f":"(1&\"/\"&IF(MONTH(AO8)+1>12,12-MONTH(AO8)+1,(MONTH(AO8)+1)&\"/\"&IF(MONTH(AO8)+1>12,YEAR(AO8)+1,YEAR(AO8))))-1","v":"2023-08-31"},{"$f":"(1&\"/\"&IF(MONTH(AP8)+1>12,12-MONTH(AP8)+1,(MONTH(AP8)+1)&\"/\"&IF(MONTH(AP8)+1>12,YEAR(AP8)+1,YEAR(AP8))))-1","v":"2023-09-30"},"2023-10-31","2023-11-30"]
["IdX","Conv. Col","Colectivo","Baixa","D","Traballador","N.I.F.","Nacemento","Sexo","Discapacidade","Grao","Tipo","Alta","Baixa2","Código","Tipo ","Xornada","Días","Achega Sol."," ","  ","   ","Periodo","7","8","9","10","11","Columna6","Columna7","Columna8","Columna9","Columna10","Columna11","Columna12","Columna13","Columna14","Columna15","Columna16","Columna17","Columna18","Columna19","Columna20","Columna21","ini periodo 1º","fin periodo 1º","Dias periodo 1º","Columna22","TotDias1º","5","Columna24","Observacións","Columna25"]
[null,null,null,null,{"$f":"IF(J11=\"\",\"\",IF(K11>=65,1,IF(AND(K11>=33,OR(J11=\"P. Cerebral\",J11=\"Enf. Mental\",J11=\"D. Intelectual\",J11=\"Psíquica\")),1,0)))","v":""},null,null,null,null,null,null,null,null,null,null,{"$f":"IFERROR(VLOOKUP(O11,Códigos!K:N,2,FALSE),\"\")","v":""},null,{"$f":"IF(AND(OR(O11=402,O11=502),N11=\"\"),\"\",IF(BA11=1,\"\",W11))","v":""},{"$f":"IF(AND(OR(O11=402,O11=502),N11=\"\"),\"\",IF(BA11=1,\"\",IFERROR(IF(AW11=\"\",\"\",IF(AW11>0,(AW11*VLOOKUP(E11&\"AM+E\",Códigos!$A$2:$F$14,5,FALSE)*(IF($Q11>100,0,$Q11)/100)),0)),0)))","v":0},null,{"$f":"IFERROR(IF(IF(S11=\"\",0,S11)+IF(T11=\"\",0,T11)=0,\"\",IF(S11=\"\",0,S11)+IF(T11=\"\",0,T11)),\"\")","v":""},null,{"$f":"IFERROR(IF(SUM(X11:AB11)=0,\"\",SUM(X11:AB11)),\"\")","v":""},{"$f":"IF(OR(AC11=0,AN11=0),\"\",IF(AN11-AC11+1>30,30,AN11-AC11+1))","v":""},{"$f":"IF(OR(AD11=0,AO11=0),\"\",IF(AO11-AD11+1>30,30,AO11-AD11+1))","v":""},{"$f":"IF(OR(AE11=0,AP11=0),\"\",IF(AP11-AE11+1>30,30,AP11-AE11+1))","v":""},{"$f":"IF(OR(AF11=0,AQ11=0),\"\",IF(AQ11-AF11+1>30,30,AQ11-AF11+1))","v":""},{"$f":"IF(OR(AG11=0,AR11=0),\"\",IF(AR11-AG11+1>30,30,AR11-AG11+1))","v":""},{"$f":"IF($M11=\"\",0,IF($M11<=AC$8,1,IF(YEAR($M11)=YEAR(AC$8),IF(MONTH($M11)=MONTH(AC$8),DAY($M11),0))))","v":0},0,0,0,0,{"$f":"IF(M11=\"\",DAY($G$7),DAY(M11))","v":1},{"$f":"IF(M11=\"\",MONTH($G$7),MONTH(M11))","v":7},{"$f":"IF(M11=\"\",YEAR($G$7),YEAR(M11))","v":2023},{"$f":"IFERROR(IF(N11=\"\",DAY($H$7),DAY(N11)),DAY($H$7))","v":30},{"$f":"IFERROR(IF(N11=\"\",MONTH($H$7),MONTH(N11)),MONTH($H$7))","v":11},{"$f":"IFERROR(IF(N11=\"\",YEAR($H$7),YEAR(N11)),YEAR($H$7))","v":2023},{"$f":"IF($N11=\"\",DAY(AN$9),IF($N11>=AN$9,DAY(AN$9),IF(MONTH($N11)=MONTH(AN$9),DAY($N11),0)))","v":31},31,30,31,30,{"$f":"IF(M11<=$G$7,$G$7,IF(AND(M11>$G$7,M11<=$H$7),M11,IF(M11>$H$7,1)))","v":"2023-07-01"},{"$f":"IF(N11=\"\",$H$7,N11)","v":"2023-11-30"},{"$f":"DAYS360(AS11-1,AT11)","v":150},{"$f":"IF(AU11=W11,\"Ok\",\"\")","v":""},{"$f":"AU11","v":150},{"$f":"IF(COLUMN()>0,5,5)","v":5},{"$f":"IFERROR(IF(AND(F11>0,G11>0),7,0),7)","v":0},null,{"$f":"IF(IFERROR(VLOOKUP(AZ11,$G$10:$G$35,1,0),\"\")=\"\",\"\",1)","v":""}]
[null,null,null,null,"",null,null,null,null,null,null,null,null,null,null,{"$f":"IFERROR(VLOOKUP(O12,Códigos!K:N,2,FALSE),\"\")","v":""},null,{"$f":"IF(AND(OR(O12=402,O12=502),N12=\"\"),\"\",IF(BA12=1,\"\",W12))","v":""},{"$f":"IF(AND(OR(O12=402,O12=502),N12=\"\"),\"\",IF(BA12=1,\"\",IFERROR(IF(AW12=\"\",\"\",IF(AW12>0,(AW12*VLOOKUP(E12&\"AM+E\",Códigos!$A$2:$F$14,5,FALSE)*(IF($Q12>100,0,$Q12)/100)),0)),0)))","v":0},null,{"$f":"IFERROR(IF(IF(S12=\"\",0,S12)+IF(T12=\"\",0,T12)=0,\"\",IF(S12=\"\",0,S12)+IF(T12=\"\",0,T12)),\"\")","v":""},null,{"$f":"IFERROR(IF(SUM(X12:AB12)=0,\"\",SUM(X12:AB12)),\"\")","v":""},{"$f":"IF(OR(AC12=0,AN12=0),\"\",IF(AN12-AC12+1>30,30,AN12-AC12+1))","v":""},"","","","",0,0,0,0,0,{"$f":"IF(M12=\"\",DAY($G$7),DAY(M12))","v":1},{"$f":"IF(M12=\"\",MONTH($G$7),MONTH(M12))","v":7},{"$f":"IF(M12=\"\",YEAR($G$7),YEAR(M12))","v":2023},{"$f":"IFERROR(IF(N12=\"\",DAY($H$7),DAY(N12)),DAY($H$7))","v":30},{"$f":"IFERROR(IF(N12=\"\",MONTH($H$7),MONTH(N12)),MONTH($H$7))","v":11},{"$f":"IFERROR(IF(N12=\"\",YEAR($H$7),YEAR(N12)),YEAR($H$7))","v":2023},31,31,30,31,30,{"$f":"IF(M12<=$G$7,$G$7,IF(AND(M12>$G$7,M12<=$H$7),M12,IF(M12>$H$7,1)))","v":"2023-07-01"},"2023-11-30",{"$f":"DAYS360(AS12-1,AT12)","v":150},{"$f":"IF(AU12=W12,\"Ok\",\"\")","v":""},{"$f":"AU12","v":150},5,{"$f":"IFERROR(IF(AND(F12>0,G12>0),7,0),7)","v":0},null,""]
[null,null,null,null,"",null,null,null,null,null,null,null,null,null,null,{"$f":"IFERROR(VLOOKUP(O13,Códigos!K:N,2,FALSE),\"\")","v":""},null,{"$f":"IF(AND(OR(O13=402,O13=502),N13=\"\"),\"\",IF(BA13=1,\"\",W13))","v":""},{"$f":"IF(AND(OR(O13=402,O13=502),N13=\"\"),\"\",IF(BA13=1,\"\",IFERROR(IF(AW13=\"\",\"\",IF(AW13>0,(AW13*VLOOKUP(E13&\"AM+E\",Códigos!$A$2:$F$14,5,FALSE)*(IF($Q13>100,0,$Q13)/100)),0)),0)))","v":0},null,{"$f":"IFERROR(IF(IF(S13=\"\",0,S13)+IF(T13=\"\",0,T13)=0,\"\",IF(S13=\"\",0,S13)+IF(T13=\"\",0,T13)),\"\")","v":""},null,{"$f":"IFERROR(IF(SUM(X13:AB13)=0,\"\",SUM(X13:AB13)),\"\")","v":""},{"$f":"IF(OR(AC13=0,AN13=0),\"\",IF(AN13-AC13+1>30,30,AN13-AC13+1))","v":""},{"$f":"IF(OR(AD13=0,AO13=0),\"\",IF(AO13-AD13+1>30,30,AO13-AD13+1))","v":""},{"$f":"IF(OR(AE13=0,AP13=0),\"\",IF(AP13-AE13+1>30,30,AP13-AE13+1))","v":""},{"$f":"IF(OR(AF13=0,AQ13=0),\"\",IF(AQ13-AF13+1>30,30,AQ13-AF13+1))","v":""},{"$f":"IF(OR(AG13=0,AR13=0),\"\",IF(AR13-AG13+1>30,30,AR13-AG13+1))","v":""},{"$f":"IF($M13=\"\",0,IF($M13<=AC$8,1,IF(YEAR($M13)=YEAR(AC$8),IF(MONTH($M13)=MONTH(AC$8),DAY($M13),0))))","v":0},{"$f":"IF($M13=\"\",0,IF($M13<=AD$8,1,IF(YEAR($M13)=YEAR(AD$8),IF(MONTH($M13)=MONTH(AD$8),DAY($M13),0))))","v":0},{"$f":"IF($M13=\"\",0,IF($M13<=AE$8,1,IF(YEAR($M13)=YEAR(AE$8),IF(MONTH($M13)=MONTH(AE$8),DAY($M13),0))))","v":0},{"$f":"IF($M13=\"\",0,IF($M13<=AF$8,1,IF(YEAR($M13)=YEAR(AF$8),IF(MONTH($M13)=MONTH(AF$8),DAY($M13),0))))","v":0},{"$f":"IF($M13=\"\",0,IF($M13<=AG$8,1,IF(YEAR($M13)=YEAR(AG$8),IF(MONTH($M13)=MONTH(AG$8),DAY($M13),0))))","v":0},{"$f":"IF(M13=\"\",DAY($G$7),DAY(M13))","v":1},{"$f":"IF(M13=\"\",MONTH($G$7),MONTH(M13))","v":7},{"$f":"IF(M13=\"\",YEAR($G$7),YEAR(M13))","v":2023},{"$f":"IFERROR(IF(N13=\"\",DAY($H$7),DAY(N13)),DAY($H$7))","v":30},{"$f":"IFERROR(IF(N13=\"\",MONTH($H$7),MONTH(N13)),MONTH($H$7))","v":11},{"$f":"IFERROR(IF(N13=\"\",YEAR($H$7),YEAR(N13)),YEAR($H$7))","v":2023},{"$f":"IF($N13=\"\",DAY(AN$9),IF($N13>=AN$9,DAY(AN$9),IF(MONTH($N13)=MONTH(AN$9),DAY($N13),0)))","v":31},{"$f":"IF($N13=\"\",DAY(AO$9),IF($N13>=AO$9,DAY(AO$9),IF(MONTH($N13)=MONTH(AO$9),DAY($N13),0)))","v":31},{"$f":"IF($N13=\"\",DAY(AP$9),IF($N13>=AP$9,DAY(AP$9),IF(MONTH($N13)=MONTH(AP$9),DAY($N13),0)))","v":30},{"$f":"IF($N13=\"\",DAY(AQ$9),IF($N13>=AQ$9,DAY(AQ$9),IF(MONTH($N13)=MONTH(AQ$9),DAY($N13),0)))","v":31},{"$f":"IF($N13=\"\",DAY(AR$9),IF($N13>=AR$9,DAY(AR$9),IF(MONTH($N13)=MONTH(AR$9),DAY($N13),0)))","v":30},{"$f":"IF(M13<=$G$7,$G$7,IF(AND(M13>$G$7,M13<=$H$7),M13,IF(M13>$H$7,1)))","v":"2023-07-01"},"2023-11-30",{"$f":"DAYS360(AS13-1,AT13)","v":150},{"$f":"IF(AU13=W13,\"Ok\",\"\")","v":""},{"$f":"AU13","v":150},5,0,null,{"$f":"IF(IFERROR(VLOOKUP(AZ13,$G$10:$G$35,1,0),\"\")=\"\",\"\",1)","v":""}]
[null,null,null,null,"",null,null,null,null,null,null,null,null,null,null,{"$f":"IFERROR(VLOOKUP(O14,Códigos!K:N,2,FALSE),\"\")","v":""},null,{"$f":"IF(AND(OR(O14=402,O14=502),N14=\"\"),\"\",IF(BA14=1,\"\",W14))","v":""},{"$f":"IF(AND(OR(O14=402,O14=502),N14=\"\"),\"\",IF(BA14=1,\"\",IFERROR(IF(AW14=\"\",\"\",IF(AW14>0,(AW14*VLOOKUP(E14&\"AM+E\",Códigos!$A$2:$F$14,5,FALSE)*(IF($Q14>100,0,$Q14)/100)),0)),0)))","v":0},null,{"$f":"IFERROR(IF(IF(S14=\"\",0,S14)+IF(T14=\"\",0,T14)=0,\"\",IF(S14=\"\",0,S14)+IF(T14=\"\",0,T14)),\"\")","v":""},null,{"$f":"IFERROR(IF(SUM(X14:AB14)=0,\"\",SUM(X14:AB14)),\"\")","v":""},"","","","","",0,0,0,0,0,1,7,2023,{"$f":"IFERROR(IF(N14=\"\",DAY($H$7),DAY(N14)),DAY($H$7))","v":30},{"$f":"IFERROR(IF(N14=\"\",MONTH($H$7),MONTH(N14)),MONTH($H$7))","v":11},{"$f":"IFERROR(IF(N14=\"\",YEAR($H$7),YEAR(N14)),YEAR($H$7))","v":2023},31,31,30,31,30,{"$f":"IF(M14<=$G$7,$G$7,IF(AND(M14>$G$7,M14<=$H$7),M14,IF(M14>$H$7,1)))","v":"2023-07-01"},"2023-11-30",{"$f":"DAYS360(AS14-1,AT14)","v":150},{"$f":"IF(AU14=W14,\"Ok\",\"\")","v":""},{"$f":"AU14","v":150},5,0,null,""]
[null,null,null,null,"",null,null,null,null,null,null,null,null,null,null,{"$f":"IFERROR(VLOOKUP(O15,Códigos!K:N,2,FALSE),\"\")","v":""},null,"",{"$f":"IF(AND(OR(O15=402,O15=502),N15=\"\"),\"\",IF(BA15=1,\"\",IFERROR(IF(AW15=\"\",\"\",IF(AW15>0,(AW15*VLOOKUP(E15&\"AM+E\",Códigos!$A$2:$F$14,5,FALSE)*(IF($Q15>100,0,$Q15)/100)),0)),0)))","v":0},null,"",null,{"$f":"IFERROR(IF(SUM(X15:AB15)=0,\"\",SUM(X15:AB15)),\"\")","v":""},"","","","","",0,0,0,0,0,1,7,2023,30,11,2023,31,31,30,31,30,"2023-07-01","2023-11-30",{"$f":"DAYS360(AS15-1,AT15)","v":150},"",150,5,0,null,""]
[null,null,null,null,"",null,null,null,null,null,null,null,null,null,null,{"$f":"IFERROR(VLOOKUP(O16,Códigos!K:N,2,FALSE),\"\")","v":""},null,"",{"$f":"IF(AND(OR(O16=402,O16=502),N16=\"\"),\"\",IF(BA16=1,\"\",IFERROR(IF(AW16=\"\",\"\",IF(AW16>0,(AW16*VLOOKUP(E16&\"AM+E\",Códigos!$A$2:$F$14,5,FALSE)*(IF($Q16>100,0,$Q16)/100)),0)),0)))","v":0},null,"",null,"","","","","","",0,0,0,0,0,1,7,2023,30,11,2023,31,31,30,31,30,"2023-07-01","2023-11-30",150,"",150,5,0,null,""]
[null,null,null,null,"",null,null,null,null,null,null,null,null,null,null,{"$f":"IFERROR(VLOOKUP(O17,Códigos!K:N,2,FALSE),\"\")","v":""},null,"",{"$f":"IF(AND(OR(O17=402,O17=502),N17=\"\"),\"\",IF(BA17=1,\"\",IFERROR(IF(AW17=\"\",\"\",IF(AW17>0,(AW17*VLOOKUP(E17&\"AM+E\",Códigos!$A$2:$F$14,5,FALSE)*(IF($Q17>100,0,$Q17)/100)),0)),0)))","v":0},null,"",null,"","","","","","",0,0,0,0,0,1,7,2023,30,11,2023,31,31,30,31,30,"2023-07-01","2023-11-30",150,"",150,5,{"$f":"IFERROR(IF(AND(F17>0,G17>0),7,0),7)","v":0},null,""]
[null,null,null,null,"",null,null,null,null,null,null,null,null,null,null,{"$f":"IFERROR(VLOOKUP(O18,Códigos!K:N,2,FALSE),\"\")","v":""},null,"",{"$f":"IF(AND(OR(O18=402,O18=502),N18=\"\"),\"\",IF(BA18=1,\"\",IFERROR(IF(AW18=\"\",\"\",IF(AW18>0,(AW18*VLOOKUP(E18&\"AM+E\",Códigos!$A$2:$F$14,5,FALSE)*(IF($Q18>100,0,$Q18)/100)),0)),0)))","v":0},null,"",null,"","","","","","",0,0,0,0,0,1,7,2023,30,11,2023,31,31,30,31,30,"2023-07-01","2023-11-30",150,"",150,5,0,null,""]
[null,null,null,null,"",null,null,null,null,null,null,null,null,null,null,{"$f":"IFERROR(VLOOKUP(O19,Códigos!K:N,2,FALSE),\"\")","v":""},null,"",{"$f":"IF(AND(OR(O19=402,O19=502),N19=\"\"),\"\",IF(BA19=1,\"\",IFERROR(IF(AW19=\"\",\"\",IF(AW19>0,(AW19*VLOOKUP(E19&\"AM+E\",Códigos!$A$2:$F$14,5,FALSE)*(IF($Q19>100,0,$Q19)/100)),0)),0)))","v":0},null,"",null,"","","","","","",0,0,0,0,0,1,7,2023,30,11,2023,31,31,30,31,30,"2023-07-01","2023-11-30",150,"",150,5,0,null,""]
[null,null,null,null,"",null,null,null,null,null,null,null,null,null,null,null,null,"",{"$f":"IF(AND(OR(O20=402,O20=502),N20=\"\"),\"\",IF(BA20=1,\"\",IFERROR(IF(AW20=\"\",\"\",IF(AW20>0,(AW20*VLOOKUP(E20&\"AM+E\",Códigos!$A$2:$F$14,5,FALSE)*(IF($Q20>100,0,$Q20)/100)),0)),0)))","v":0},null,"",null,"","","","","","",0,0,0,0,0,1,7,2023,30,11,2023,31,31,30,31,30,"2023-07-01","2023-11-30",150,"",150,5,{"$f":"IFERROR(IF(AND(F20>0,G20>0),7,0),7)","v":0},null,""]
[null,null,null,null,"",null,null,null,null,null,null,null,null,null,null,{"$f":"IFERROR(VLOOKUP(O21,Códigos!K:N,2,FALSE),\"\")","v":""},null,"",{"$f":"IF(AND(OR(O21=402,O21=502),N21=\"\"),\"\",IF(BA21=1,\"\",IFERROR(IF(AW21=\"\",\"\",IF(AW21>0,(AW21*VLOOKUP(E21&\"AM+E\",Códigos!$A$2:$F$14,5,FALSE)*(IF($Q21>100,0,$Q21)/100)),0)),0)))","v":0},null,"",null,"","","","","","",0,0,0,0,0,1,7,2023,30,11,2023,31,31,30,31,30,"2023-07-01","2023-11-30",150,"",150,5,{"$f":"IFERROR(IF(AND(F21>0,G21>0),7,0),7)","v":0},null,""]
[null,null,null,null,"",null,null,null,null,null,null,null,null,null,null,{"$f":"IFERROR(VLOOKUP(O22,Códigos!K:N,2,FALSE),\"\")","v":""},null,"",{"$f":"IF(AND(OR(O22=402,O22=502),N22=\"\"),\"\",IF(BA22=1,\"\",IFERROR(IF(AW22=\"\",\"\",IF(AW22>0,(AW22*VLOOKUP(E22&\"AM+E\",Códigos!$A$2:$F$14,5,FALSE)*(IF($Q22>100,0,$Q22)/100)),0)),0)))","v":0},null,"",null,"","","","","","",{"$f":"IF($M22=\"\",0,IF($M22<=AC$8,1,IF(YEAR($M22)=YEAR(AC$8),IF(MONTH($M22)=MONTH(AC$8),DAY($M22),0))))","v":0},0,0,0,0,1,7,2023,30,11,2023,{"$f":"IF($N22=\"\",DAY(AN$9),IF($N22>=AN$9,DAY(AN$9),IF(MONTH($N22)=MONTH(AN$9),DAY($N22),0)))","v":31},31,30,31,30,"2023-07-01","2023-11-30",150,"",150,5,0,null,""]
[null,null,null,null,"",null,null,null,null,null,null,null,null,null,null,{"$f":"IFERROR(VLOOKUP(O23,Códigos!K:N,2,FALSE),\"\")","v":""},null,"",{"$f":"IF(AND(OR(O23=402,O23=502),N23=\"\"),\"\",IF(BA23=1,\"\",IFERROR(IF(AW23=\"\",\"\",IF(AW23>0,(AW23*VLOOKUP(E23&\"AM+E\",Códigos!$A$2:$F$14,5,FALSE)*(IF($Q23>100,0,$Q23)/100)),0)),0)))","v":0},null,"",null,"","","","","","",0,0,0,0,0,1,7,2023,30,11,2023,31,31,30,31,30,"2023-07-01","2023-11-30",150,"",150,5,0,null,""]
[null,null,null,null,"",null,null,null,null,null,null,null,null,null,null,{"$f":"IFERROR(VLOOKUP(O24,Códigos!K:N,2,FALSE),\"\")","v":""},null,"",{"$f":"IF(AND(OR(O24=402,O24=502),N24=\"\"),\"\",IF(BA24=1,\"\",IFERROR(IF(AW24=\"\",\"\",IF(AW24>0,(AW24*VLOOKUP(E24&\"AM+E\",Códigos!$A$2:$F$14,5,FALSE)*(IF($Q24>100,0,$Q24)/100)),0)),0)))","v":0},null,"",null,"","","","","","",0,0,0,0,0,1,7,2023,30,11,2023,31,31,30,31,30,"2023-07-01","2023-11-30",150,"",150,5,0,null,""]
[null,null,null,null,"",null,null,null,null,null,null,null,null,null,null,{"$f":"IFERROR(VLOOKUP(O25,Códigos!K:N,2,FALSE),\"\")","v":""},null,"",{"$f":"IF(AND(OR(O25=402,O25=502),N25=\"\"),\"\",IF(BA25=1,\"\",IFERROR(IF(AW25=\"\",\"\",IF(AW25>0,(AW25*VLOOKUP(E25&\"AM+E\",Códigos!$A$2:$F$14,5,FALSE)*(IF($Q25>100,0,$Q25)/100)),0)),0)))","v":0},null,"",null,"","","","","","",0,0,0,0,0,1,7,2023,30,11,2023,31,31,30,31,30,"2023-07-01","2023-11-30",150,"",150,5,0,null,""]
[null,null,null,null,"",null,null,null,null,null,null,null,null,null,null,{"$f":"IFERROR(VLOOKUP(O26,Códigos!K:N,2,FALSE),\"\")","v":""},null,"",{"$f":"IF(AND(OR(O26=402,O26=502),N26=\"\"),\"\",IF(BA26=1,\"\",IFERROR(IF(AW26=\"\",\"\",IF(AW26>0,(AW26*VLOOKUP(E26&\"AM+E\",Códigos!$A$2:$F$14,5,FALSE)*(IF($Q26>100,0,$Q26)/100)),0)),0)))","v":0},null,"",null,"","","","","","",0,0,0,0,0,1,7,2023,30,11,2023,31,31,30,31,30,"2023-07-01","2023-11-30",150,"",150,5,0,null,""]
[null,null,null,null,"",null,null,null,null,null,null,null,null,null,null,{"$f":"IFERROR(VLOOKUP(O27,Códigos!K:N,2,FALSE),\"\")","v":""},null,"",{"$f":"IF(AND(OR(O27=402,O27=502),N27=\"\"),\"\",IF(BA27=1,\"\",IFERROR(IF(AW27=\"\",\"\",IF(AW27>0,(AW27*VLOOKUP(E27&\"AM+E\",Códigos!$A$2:$F$14,5,FALSE)*(IF($Q27>100,0,$Q27)/100)),0)),0)))","v":0},null,"",null,"","","","","","",0,0,0,0,0,1,7,2023,30,11,2023,31,31,30,31,30,"2023-07-01","2023-11-30",150,"",150,5,0,null,""]
[null,null,null,null,"",null,null,null,null,null,null,null,null,null,null,{"$f":"IFERROR(VLOOKUP(O28,Códigos!K:N,2,FALSE),\"\")","v":""},null,"",{"$f":"IF(AND(OR(O28=402,O28=502),N28=\"\"),\"\",IF(BA28=1,\"\",IFERROR(IF(AW28=\"\",\"\",IF(AW28>0,(AW28*VLOOKUP(E28&\"AM+E\",Códigos!$A$2:$F$14,5,FALSE)*(IF($Q28>100,0,$Q28)/100)),0)),0)))","v":0},null,"",null,"","","","","","",0,0,0,0,0,1,7,2023,30,11,2023,31,31,30,31,30,"2023-07-01","2023-11-30",150,"",150,5,0,null,""]
[null,null,null,null,"",null,null,null,null,null,null,null,null,null,null,{"$f":"IFERROR(VLOOKUP(O29,Códigos!K:N,2,FALSE),\"\")","v":""},null,"",{"$f":"IF(AND(OR(O29=402,O29=502),N29=\"\"),\"\",IF(BA29=1,\"\",IFERROR(IF(AW29=\"\",\"\",IF(AW29>0,(AW29*VLOOKUP(E29&\"AM+E\",Códigos!$A$2:$F$14,5,FALSE)*(IF($Q29>100,0,$Q29)/100)),0)),0)))","v":0},null,"",null,"","","","","","",0,0,0,0,0,1,7,2023,30,11,2023,31,31,30,31,30,"2023-07-01","2023-11-30",150,"",150,5,0,null,""]
[null,null,null,null,"",null,null,null,null,null,null,null,null,null,null,{"$f":"IFERROR(VLOOKUP(O30,Códigos!K:N,2,FALSE),\"\")","v":""},null,"",{"$f":"IF(AND(OR(O30=402,O30=502),N30=\"\"),\"\",IF(BA30=1,\"\",IFERROR(IF(AW30=\"\",\"\",IF(AW30>0,(AW30*VLOOKUP(E30&\"AM+E\",Códigos!$A$2:$F$14,5,FALSE)*(IF($Q30>100,0,$Q30)/100)),0)),0)))","v":0},null,"",null,"","","","","","",0,0,0,0,0,1,7,2023,30,11,2023,31,31,30,31,30,"2023-07-01","2023-11-30",150,"",150,5,0,null,""]
[null,null,null,null,"",null,null,null,null,null,null,null,null,null,null,{"$f":"IFERROR(VLOOKUP(O31,Códigos!K:N,2,FALSE),\"\")","v":""},null,"",{"$f":"IF(AND(OR(O31=402,O31=502),N31=\"\"),\"\",IF(BA31=1,\"\",IFERROR(IF(AW31=\"\",\"\",IF(AW31>0,(AW31*VLOOKUP(E31&\"AM+E\",Códigos!$A$2:$F$14,5,FALSE)*(IF($Q31>100,0,$Q31)/100)),0)),0)))","v":0},null,"",null,"","","","","","",0,0,0,0,0,1,7,2023,30,11,2023,31,31,30,31,30,"2023-07-01","2023-11-30",150,"",150,5,0,null,""]
[null,null,null,null,"",null,null,null,null,null,null,null,null,null,null,{"$f":"IFERROR(VLOOKUP(O32,Códigos!K:N,2,FALSE),\"\")","v":""},null,"",{"$f":"IF(AND(OR(O32=402,O32=502),N32=\"\"),\"\",IF(BA32=1,\"\",IFERROR(IF(AW32=\"\",\"\",IF(AW32>0,(AW32*VLOOKUP(E32&\"AM+E\",Códigos!$A$2:$F$14,5,FALSE)*(IF($Q32>100,0,$Q32)/100)),0)),0)))","v":0},null,"",null,"","","","","","",0,0,0,0,0,1,7,2023,30,11,2023,31,31,30,31,30,"2023-07-01","2023-11-30",150,"",150,5,0,null,""]
[null,null,null,null,"",null,null,null,null,null,null,null,null,null,null,{"$f":"IFERROR(VLOOKUP(O33,Códigos!K:N,2,FALSE),\"\")","v":""},null,"",{"$f":"IF(AND(OR(O33=402,O33=502),N33=\"\"),\"\",IF(BA33=1,\"\",IFERROR(IF(AW33=\"\",\"\",IF(AW33>0,(AW33*VLOOKUP(E33&\"AM+E\",Códigos!$A$2:$F$14,5,FALSE)*(IF($Q33>100,0,$Q33)/100)),0)),0)))","v":0},null,"",null,"","","","","","",0,0,0,0,0,1,7,2023,30,11,2023,31,31,30,31,30,"2023-07-01","2023-11-30",150,"",150,5,0,null,""]
[null,null,null,null,"",null,null,null,null,null,null,null,null,null,null,{"$f":"IFERROR(VLOOKUP(O34,Códigos!K:N,2,FALSE),\"\")","v":""},null,"",{"$f":"IF(AND(OR(O34=402,O34=502),N34=\"\"),\"\",IF(BA34=1,\"\",IFERROR(IF(AW34=\"\",\"\",IF(AW34>0,(AW34*VLOOKUP(E34&\"AM+E\",Códigos!$A$2:$F$14,5,FALSE)*(IF($Q34>100,0,$Q34)/100)),0)),0)))","v":0},null,"",null,"","","","","","",0,0,0,0,0,1,7,2023,30,11,2023,31,31,30,31,30,"2023-07-01","2023-11-30",150,"",150,5,0,null,""]
[null,null,null,null,{"$f":"IF(J35=\"\",\"\",IF(K35>=65,1,IF(AND(K35>=33,OR(J35=\"P. Cerebral\",J35=\"Enf. Mental\",J35=\"D. Intelectual\",J35=\"Psíquica\")),1,0)))","v":""},null,null,null,null,null,null,null,null,null,null,{"$f":"IFERROR(VLOOKUP(O35,Códigos!K:N,2,FALSE),\"\")","v":""},null,{"$f":"IF(AND(OR(O35=402,O35=502),N35=\"\"),\"\",IF(BA35=1,\"\",W35))","v":""},{"$f":"IF(AND(OR(O35=402,O35=502),N35=\"\"),\"\",IF(BA35=1,\"\",IFERROR(IF(AW35=\"\",\"\",IF(AW35>0,(AW35*VLOOKUP(E35&\"AM+E\",Códigos!$A$2:$F$14,5,FALSE)*(IF($Q35>100,0,$Q35)/100)),0)),0)))","v":0},null,{"$f":"IFERROR(IF(IF(S35=\"\",0,S35)+IF(T35=\"\",0,T35)=0,\"\",IF(S35=\"\",0,S35)+IF(T35=\"\",0,T35)),\"\")","v":""},null,{"$f":"IFERROR(IF(SUM(X35:AB35)=0,\"\",SUM(X35:AB35)),\"\")","v":""},{"$f":"IF(OR(AC35=0,AN35=0),\"\",IF(AN35-AC35+1>30,30,AN35-AC35+1))","v":""},{"$f":"IF(OR(AD35=0,AO35=0),\"\",IF(AO35-AD35+1>30,30,AO35-AD35+1))","v":""},{"$f":"IF(OR(AE35=0,AP35=0),\"\",IF(AP35-AE35+1>30,30,AP35-AE35+1))","v":""},{"$f":"IF(OR(AF35=0,AQ35=0),\"\",IF(AQ35-AF35+1>30,30,AQ35-AF35+1))","v":""},{"$f":"IF(OR(AG35=0,AR35=0),\"\",IF(AR35-AG35+1>30,30,AR35-AG35+1))","v":""},0,0,0,0,0,1,7,2023,30,11,2023,31,31,30,31,30,{"$f":"IF(M35<=$G$7,$G$7,IF(AND(M35>$G$7,M35<=$H$7),M35,IF(M35>$H$7,1)))","v":"2023-07-01"},{"$f":"IF(M35>$H$7,0,IF(N35<=$H$7,N35,IF(N35=\"\",$H$7,IF(N35>$H$7,$H$7))))","v":"00:00:00"},{"$f":"DAYS360(AS35-1,AT35)","v":-44460},{"$f":"IF(AU35=W35,\"Ok\",\"\")","v":""},{"$f":"AU35","v":-44460},{"$f":"IF(COLUMN()>0,5,5)","v":5},0,null,""]
[" "]
[null,null,null,null,null,null,null,null,null,"Lugar e data:"]
[null,null,null,null,null,null,null,null,null,"SINATURA DA PERSOA REPRESENTANTE"]

{"sheet":"Contador","index":1,"n_rows":2,"n_cols":6,"rows_kept":2,"cut":false,"hidden":true,"merged":[]}
[]
["expediente",0,null,null,null,"Verdadero"]

{"sheet":"Códigos","index":2,"n_rows":43,"n_cols":16,"rows_kept":43,"cut":false,"hidden":true,"merged":[]}
["Códigos",null,"SMI 2018",{"$f":"H1/30","v":36},{"$f":"D1/12*2","v":6},"Achega/mes","SMI 2019",1080,null,null,"cod",null,"tipo","tempo","nome","obxecto"]
[{"$f":"B2&C2","v":"0AM+E"},0,"AM+E",{"$f":"D3+D4","v":0.5},{"$f":"ROUND(D2*$D$1+$E$1*D2,2)","v":21},{"$f":"ROUND(D2*$H$1+$I$2*D2,2)","v":630},null,"Prorrata 2PE",{"$f":"H1/12*2","v":180},null,100,{"$f":"IF(M2=\"Indefinido\",\"Ind\",\"Temp\")","v":"Ind"},"Indefinido","TIEMPO COMPLETO","ORDINARIO"]
["0AM",0,"AM",0.5,{"$f":"ROUND(D3*$D$1,2)","v":18},{"$f":"ROUND(D3*$H$1,2)","v":540},null,null,null,null,109,{"$f":"IF(M3=\"Indefinido\",\"Ind\",\"Temp\")","v":"Ind"},"Indefinido","TIEMPO COMPLETO","FOMENTO CONTRATACIÓN INDEFINIDA / EMPLEO ESTABLE","TRANSFORMACIÓN CONTRATO Temporal"]
[null,null,null,null,null,null,null,null,null,null,130,"Ind","Indefinido","TIEMPO COMPLETO","MINUSVÁLIDOS"]
[{"$f":"B5&C5","v":"0CP"},0,"CP",{"$f":"0.5/6","v":0.08},{"$f":"ROUND(D5*$D$1,2)","v":2.88},{"$f":"ROUND(D5*$H$1,2)","v":86.4},null,null,null,null,139,"Ind","Indefinido","TIEMPO COMPLETO","MINUSVÁLIDOS","TRANSFORMACIÓN CONTRATO Temporal"]
[{"$f":"B6&C6","v":"0CV"},0,"CV",0.5,{"$f":"ROUND(D6*$D$1,2)","v":18},{"$f":"ROUND(D6*$H$1,2)","v":540},null,null,null,null,150,"Ind","Indefinido","TIEMPO COMPLETO","FOMENTO CONTRATACIÓN INDEFINIDA / EMPLEO ESTABLE","INICIAL"]
["0CV+E",0,"CV+E",{"$f":"D3+D4","v":0.5},{"$f":"ROUND(D7*$D$1,2)","v":18},{"$f":"ROUND(D7*$H$1,2)","v":540},null,null,null,null,189,"Ind","Indefinido","TIEMPO COMPLETO",null,"TRANSFORMACIÓN CONTRATO Temporal"]
[null,null,null,null,null,null,null,null,null,null,200,"Ind","Indefinido","TIEMPO PARCIAL","ORDINARIO"]
["1AM+E",1,"AM+E",0.6,{"$f":"ROUND(D9*$D$1+$E$1*D9,2)","v":25.2},{"$f":"ROUND(D9*$H$1+$I$2*D9,2)","v":756},null,null,null,null,209,"Ind","Indefinido","TIEMPO PARCIAL","FOMENTO CONTRATACIÓN INDEFINIDA / EMPLEO ESTABLE","TRANSFORMACIÓN CONTRATO Temporal"]
["1AM",1,"AM",0.6,{"$f":"ROUND(D10*$D$1,2)","v":21.6},{"$f":"ROUND(D10*$H$1,2)","v":648},null,null,null,null,230,"Ind","Indefinido","TIEMPO PARCIAL","MINUSVÁLIDOS"]
[null,null,null,null,null,null,null,null,null,null,239,"Ind","Indefinido","TIEMPO PARCIAL","MINUSVÁLIDOS","TRANSFORMACIÓN CONTRATO Temporal"]
["1CP",1,"CP",{"$f":"0.6/6","v":0.1},{"$f":"ROUND(D12*$D$1,2)","v":3.6},{"$f":"ROUND(D12*$H$1,2)","v":108},null,null,null,null,250,"Ind","Indefinido","TIEMPO PARCIAL","FOMENTO CONTRATACIÓN INDEFINIDA / EMPLEO ESTABLE","INICIAL"]
["1CV",1,"CV",0.6,{"$f":"ROUND(D13*$D$1,2)","v":21.6},{"$f":"ROUND(D13*$H$1,2)","v":648},null,null,null,null,289,"Ind","Indefinido","TIEMPO PARCIAL",null,"TRANSFORMACIÓN CONTRATO Temporal"]
["1CV+E",1,"CV+E",0.6,{"$f":"ROUND(D14*$D$1+$E$1*D14,2)","v":25.2},{"$f":"ROUND(D14*$H$1+$I$2*D14,2)","v":756},null,null,null,null,300,"Ind","Indefinido","FIJO/DISCONTINUO"]
[null,null,null,null,null,null,null,null,null,null,309,"Ind","Indefinido","FIJO/DISCONTINUO","FOMENTO CONTRATACIÓN INDEFINIDA / EMPLEO ESTABLE","TRANSFORMACIÓN CONTRATO Temporal"]
["Minusvalía",null,"Tipo ",null,null,null,null,null,null,null,330,"Ind","Indefinido","FIJO/DISCONTINUO","MINUSVÁLIDOS"]
["Pensionista",null,"minus",null,null,null,null,null,null,null,350,"Ind","Indefinido","FIJO/DISCONTINUO","FOMENTO CONTRATACIÓN INDEFINIDA / EMPLEO ESTABLE","INICIAL"]
["Definitiva",null,"Física",null,null,null,null,null,null,null,389,"Ind","Indefinido","FIJO/DISCONTINUO",null,"TRANSFORMACIÓN CONTRATO Temporal"]
["Provisional",null,"Sensorial",null,null,null,null,null,null,null,401,"Temp","Duración Determinada","TIEMPO COMPLETO","OBRA O SERVICIO DETERMINADO"]
[" ",null,"P. Cerebral",null,null,null,null,null,null,null,402,"Temp","Duración Determinada","TIEMPO COMPLETO","EVENTUAL POR CIRCUNSTANCIAS DE LA PRODUCCIÓN"]
["sexo",null,"Enf. Mental",null,null,null,null,null,null,null,403,"Temp","Duración Determinada","TIEMPO COMPLETO","INSERCIÓN"]
["H",null,"D. Intelectual",null,null,null,null,null,null,null,408,"Temp","Temporal","TIEMPO COMPLETO",null,"CARÁCTER ADMINISTRATIVO"]
["M",null,"Psíquica",null,null,null,null,null,null,null,410,"Temp","Duración Determinada","TIEMPO COMPLETO","INTERINIDAD"]
[null,null,null,null,null,null,null,null,null,null,418,"Temp","Duración Determinada","TIEMPO COMPLETO","INTERINIDAD","CARÁCTER ADMINISTRATIVO"]
[null,null,null,null,null,null,null,null,null,null,420,"Temp","Temporal","TIEMPO COMPLETO","PRÁCTICAS"]
["Conv",null,null,null,null,null,null,null,null,null,421,"Temp","Temporal","TIEMPO COMPLETO","FORMACIÓN"]
["Baixa",null,null,null,null,null,null,null,null,null,430,"Temp","Temporal","TIEMPO COMPLETO","MINUSVÁLIDOS"]
["Si",null,null,null,null,null,null,null,null,null,441,"Temp","Temporal","TIEMPO COMPLETO","RELEVO"]
["Non",null,null,null,null,null,null,null,null,null,450,"Temp","Temporal","TIEMPO COMPLETO","FOMENTO CONTRATACIÓN INDEFINIDA / EMPLEO ESTABLE"]
[null,null,null,null,null,null,null,null,null,null,501,"Temp","Duración Determinada","TIEMPO PARCIAL","OBRA O SERVICIO DETERMINADO"]
[null,"Mes",null,null,null,null,null,null,null,null,502,"Temp","Duración Determinada","TIEMPO PARCIAL","EVENTUAL POR CIRCUNSTANCIAS DE LA PRODUCCIÓN"]
[null,7,"Xullo",null,null,null,null,null,null,null,503,"Temp","Duración Determinada","TIEMPO PARCIAL","INSERCIÓN"]
[null,8,"Agosto",null,null,null,null,null,null,null,508,"Temp","Temporal","TIEMPO PARCIAL",null,"CARÁCTER ADMINISTRATIVO"]
[null,9,"Setembro",null,null,null,null,null,null,null,510,"Temp","Duración Determinada","TIEMPO PARCIAL","INTERINIDAD"]
[null,10,"Outubro",null,null,null,null,null,null,null,518,"Temp","Duración Determinada","TIEMPO PARCIAL","INTERINIDAD","CARÁCTER ADMINISTRATIVO"]
[null,11,"Novembro",null,null,null,null,null,null,null,520,"Temp","Temporal","TIEMPO PARCIAL","PRÁCTICAS"]
[null,12,"Decembro",null,null,null,null,null,null,null,530,"Temp","Temporal","TIEMPO PARCIAL","MINUSVÁLIDOS"]
[null,1,"Xaneiro",null,null,null,null,null,null,null,540,"Temp","Temporal","TIEMPO PARCIAL","JUBILADO PARCIAL"]
[null,2,"Febreiro",null,null,null,null,null,null,null,541,"Temp","Temporal","TIEMPO PARCIAL","RELEVO"]
[null,3,"Marzo ",null,null,null,null,null,null,null,550,"Temp","Temporal","TIEMPO PARCIAL","FOMENTO CONTRATACIÓN INDEFINIDA / EMPLEO ESTABLE"]
[null,4,"Abril",null,null,null,null,null,null,null," ",null," "," "," "," "]
[null,5,"Maio"]
[null,6,"Xuño"]

{"sheet":"Campos a cubrir","index":3,"n_rows":47,"n_cols":10,"rows_kept":47,"cut":false,"hidden":true,"merged":[[0,0,0,6],[23,5,23,6]]}
["Este modelo está en formato Excel e, polo tanto, aínda que pode ser cuberta utilizando LibreOffice, debe gardar os cambios no mesmo formato.",null,null,null,null,null,null,null,"I  M  P  O  R  T  A  N  T  E"]
[]
["A continuación describense os campos do formulario con indicación do tipo de campo, a súa descrición, si é un campo autocalculado e si se cubre ou non",null,null,null,null,null,null,null,"Este modelo de folla de cálculo tén celdas ocultas, e celdas con fórmulas (algunhas delas ocultas)"]
[null,null,null,null,null,null,null,null,"para inserir novas filas ou para borrar información deben terse en conta as seguintes"]
["Campo",null,"Tamaño","Tipo","Descrición",null,null,null,"recomendacións:"]
["Nº Exp",null,19,"Texto","Nº de Expediente administrativo asignado na convocatoria de axudas ","Non é un campo obrigatorio"]
["C.E.E.",null,50,"Texto","Nome do Centro Especial de Emprego",null,null,null,"Borrar información"]
["C.I.F.",null,9,"Texto","C.I.F. do Centro Especial de Emprego"]
["Novo Idx",null,null,"Numérico","Suxire o nº de índice polo que se vincularía a alta dunha nova persoa traballadora ","Non se cubre","Autocalculado",null,"No caso de querer borrar a información dunha fila completamente debemos facelo"]
["Idx",null,3,"Numérico","Indicaría o nº de índice polo que se vincularía á persoa traballadora (é único para cada traballador e contrato de traballo)",null,null,null,"copiando na fila que queremos borrar  a inforación dunha fila que esté totalmente en"]
["Nº Rexistro ou data publicación C.C.",null,3,"Texto","Nº de Rexistro ou data de publicación do convenio colectivo de aplicación ó traballador",null,null,null,"blanco, xa que así conservamos a formulas de cálculo ocultas cos seus valores correctos."]
["Salario/mes Convenio Colectivo",null,null,"Numérico","Importe mensual do salario bruto a percibir por cada traballador"]
["Conv. Baixa",null,null,"Texto","lista despregable para indicar si os calculos das baixas por enfermidade correspondense co que dispoña a normativa da Seguridade Social ou si hai un convenio colectivo de aplicación específica",null,null,null,"Para facer esto temos que marcar a fila en blanco a copiar (totalmente) facendo a selección "]
["G D",null,1,"Numérico","Permite determinar si pola persoa traballadora se precibe una subvención do 50 % do SMI ou si se prima cun 10 % adicional determinado na orde de convocatoria de axudas","Non se cubre","Autocalculado",null,"desde o número indicativo da fila (non desde unha celda), seleccionar a opción de copiar e"]
["Traballador",null,50,"Texto","Apelidos e nome da persoa traballadora",null,null,null,"posicionarnos a celda que corresponda co Idx/Idn da fila a borrar, e logo pegar a información "]
["D.N.I.",null,9,"Texto","Documento Nacional de Identidade da persoa traballadora",null,null,null,"seleccionada.  Desta maneira aseguramonos de que todas as formulas, ocultas ou non, se "]
["Data Nacemento",null,6,"Data\ndd/mm/aa","Data de nacemento",null,null,null,"copian correctamente na fila que acabamos de borrar "]
["Sexo",null,1,"Texto","Sexo"]
["Discapacidade",null,14,"Texto","Tipo de discapacidade. Lista despregable cos seguintes valores (Física, Sensorial, P. Cerebral, Enf. Mental, D. Intelectual, Psíquica)",null,null,null,"Inserir novas filas para engadir datos de novas persoas traballadoras "]
["Grao",null,4,"Numérico","% de discapacidade da persoa traballadora",null,null,null,"Para facer insercións correctamente debemos:"]
["Tipo",null,11,"Texto","lista despregable donde se indica si a discapacidade do traballador é Provisional, Definitiva ou si é Pensionista con consideración de persoa con discapacidade (o contrato debe ser anterior a 29/11/2018)"]
["Data Alta",null,6,"Data\ndd/mm/aa","Data de inicio da relación laboral (data de alta do contrato de traballo)",null,null,null,"1º","Seleccionar o rango de filas a inserir e executar o comando"]
["Data Baixa",null,6,"Data\ndd/mm/aa","Data de finalización da relación laboral (data de baixa do contrato de traballo)",null,null,null,"2º","Seleccionar completamente unha fila con datos cubertos totalmente"]
["Contrato Código",null,3,"Numérico","Código do contrato de traballo según a codificación do INSS  (*)","(*)No caso de contratos 402 ou 502 débese indicar a data de finalización do mesmo",null,null,null,"(seleccionando desde o número indicativo da fila)"]
["Contrato Tipo",null,4,"Texto","Sinala si o contrato de traballo é de carácter indefinido (Ind) ou temporal (Temp)","Non se cubre","Autocalculado",null,"3º","Escoller o comando copiar"]
["Rateo",null,3,"Texto","Lista despregable de dous valores (Si - Non) Indica si nas retribucións percibidas mensualmente pola persoa traballadora se inclúe ou non a Parte proporcional das Pagas Extraordinarias (só a efectos de clasificación, os cálculos das achegas mensuais xa incluen a p.p. da paga extraordinaria)",null,null,null,"4º","Pegar nas novas filas en branco a selección anterior para que se restablezan nas"]
["% Xornada",null,4,"Numérico","% de Xornada da persoa traballadora no mes de inicio do período subvencionable",null,null,null,null,"novas filas as fórmulas ocultas ou non para poder facer posibles os cálulos)"]
["1º Anualdiade Días",null,3,"Numérico","Totalidade de días correspondentes á 1ª anualidade por persoa traballadora","Non se cubre","Autocalculado",null,null,"posicionandonos na celda que corresponda con campo Idx/Idn da nova fila a inserir"]
["1º Anualidade Achega Sol",null,null,"Numérico","Importe total da Achega solicitada na 1ª Anualidade por persoa traballadora","Non se cubre","Autocalculado"]
["2º Anualidade Días",null,null,"Numérico","Totalidade de días correspondentes á 2ª anualidade por persoa traballadora","Non se cubre","Autocalculado",null,"*****"]
["2º Anualidade Achega Sol",null,null,"Numérico","Importe total da Achega solicitada na 2ª Anualidade por persoa traballadora","Non se cubre","Autocalculado",null,"No caso de que nalgunha celda se borrase unha fórmula necesaria para o correcto cálculo da"]
["Total Traballador",null,null,"Numérico","Importe global da Achega solicitada por persoa traballadora","Non se cubre","Autocalculado",null,"subvención, sempre se pode repoñer copiando a fórmula correspondente dunha celda que faga"]
["D.N.I. Sustituido",null,9,"Texto","Nº de D.N.I. da persoa traballadora sustituido no caso de contratos de Interinidade (Código 410 ou 510)",null,null,null,"ese mesmo cálculo para outra persoa traballadora"]
["Días 1º Anualidade",null,3,"Numérico","Totalidade de días correspondentes á 1ª anualidade","Non se cubre","Autocalculado"]
["1º Anualidade",7,2,"Numérico",{"$f":"\"Nº de días de subvención correspondentes ao mes de \"&VLOOKUP(B35,Códigos!$B$31:$C$43,2,0)","v":"Nº de días de subvención correspondentes ao mes de Xullo"},"Non se cubre","Autocalculado"]
[null,8,2,"Numérico",{"$f":"\"Nº de días de subvención correspondentes ao mes de \"&VLOOKUP(B36,Códigos!$B$31:$C$43,2,0)","v":"Nº de días de subvención correspondentes ao mes de Agosto"},"Non se cubre","Autocalculado"]
[null,9,2,"Numérico",{"$f":"\"Nº de días de subvención correspondentes ao mes de \"&VLOOKUP(B37,Códigos!$B$31:$C$43,2,0)","v":"Nº de días de subvención correspondentes ao mes de Setembro"},"Non se cubre","Autocalculado"]
[null,10,2,"Numérico",{"$f":"\"Nº de días de subvención correspondentes ao mes de \"&VLOOKUP(B38,Códigos!$B$31:$C$43,2,0)","v":"Nº de días de subvención correspondentes ao mes de Outubro"},"Non se cubre","Autocalculado"]
[null,11,2,"Numérico",{"$f":"\"Nº de días de subvención correspondentes ao mes de \"&VLOOKUP(B39,Códigos!$B$31:$C$43,2,0)","v":"Nº de días de subvención correspondentes ao mes de Novembro"},"Non se cubre","Autocalculado"]
["Días 2º Anualidade",null,3,"Numérico","Totalidade de días correspondentes á 2ª anualidade","Non se cubre","Autocalculado"]
["2º Anualidade",12,2,"Numérico",{"$f":"\"Nº de días de subvención correspondentes ao mes de \"&VLOOKUP(B41,Códigos!$B$31:$C$43,2,0)","v":"Nº de días de subvención correspondentes ao mes de Decembro"},"Non se cubre","Autocalculado"]
[null,1,2,"Numérico",{"$f":"\"Nº de días de subvención correspondentes ao mes de \"&VLOOKUP(B42,Códigos!$B$31:$C$43,2,0)","v":"Nº de días de subvención correspondentes ao mes de Xaneiro"},"Non se cubre","Autocalculado"]
[null,2,2,"Numérico",{"$f":"\"Nº de días de subvención correspondentes ao mes de \"&VLOOKUP(B43,Códigos!$B$31:$C$43,2,0)","v":"Nº de días de subvención correspondentes ao mes de Febreiro"},"Non se cubre","Autocalculado"]
[null,3,2,"Numérico",{"$f":"\"Nº de días de subvención correspondentes ao mes de \"&VLOOKUP(B44,Códigos!$B$31:$C$43,2,0)","v":"Nº de días de subvención correspondentes ao mes de Marzo "},"Non se cubre","Autocalculado"]
[null,4,2,"Numérico",{"$f":"\"Nº de días de subvención correspondentes ao mes de \"&VLOOKUP(B45,Códigos!$B$31:$C$43,2,0)","v":"Nº de días de subvención correspondentes ao mes de Abril"},"Non se cubre","Autocalculado"]
[null,5,2,"Numérico",{"$f":"\"Nº de días de subvención correspondentes ao mes de \"&VLOOKUP(B46,Códigos!$B$31:$C$43,2,0)","v":"Nº de días de subvención correspondentes ao mes de Maio"},"Non se cubre","Autocalculado"]
[null,6,2,"Numérico",{"$f":"\"Nº de días de subvención correspondentes ao mes de \"&VLOOKUP(B47,Códigos!$B$31:$C$43,2,0)","v":"Nº de días de subvención correspondentes ao mes de Xuño"},"Non se cubre","Autocalculado"]